fUSD/lending_fUSD_20241220
["ID","MTS","AMOUNT","RATE_DAILY","PERIOD"]
[346109864,1734707453841,-500.0,0.00023013,4]
[346109865,1734707453850,-500.0,0.00023013,4]
[346109866,1734707453859,-793.52,0.00023013,4]
[346109867,1734707453869,-500.0,0.00023013,4]
[346109868,1734707453878,-500.0,0.00023013,4]
[346109869,1734707453887,-1146.34,0.00023013,4]
[346109870,1734707453896,-1833.46,0.00023013,4]
[346109871,1734707453906,-500.0,0.00023013,4]
[346109872,1734707453915,-500.0,0.00023013,4]
[346109873,1734707453924,-6508.14,0.00023013,4]
[346109874,1734707453932,-500.0,0.00023013,4]
[346109875,1734707453941,-500.0,0.00023013,4]
[346109876,1734707453950,-903.84,0.00023013,4]
[346109877,1734707453959,-500.0,0.00023013,4]
[346109878,1734707453969,-500.0,0.00023013,4]
[346109879,1734707453978,-500.0,0.00023013,4]
[346109880,1734707453987,-500.0,0.00023013,4]
[346109881,1734707453996,-500.0,0.00023013,4]
[346109882,1734707454005,-731.02,0.00023013,4]
[346109883,1734707454016,-776.61,0.00023013,4]
[346109884,1734707454027,-500.0,0.00023013,4]
[346109885,1734707454036,-507.66,0.00023013,4]
[346109886,1734707454047,-965.02,0.00023013,4]
[346109887,1734707454057,-759.84,0.00023013,4]
[346109888,1734707454066,-6484.19,0.00023013,4]
[346109889,1734707454076,-2332.61,0.00023013,4]
[346109890,1734707454085,-500.0,0.00023013,4]
[346109891,1734707454094,-1666.41,0.00023013,4]
[346109892,1734707454103,-500.0,0.00023013,4]
[346109893,1734707454112,-501.2,0.00023013,4]
[346109894,1734707454122,-1389.61,0.00023013,4]
[346109895,1734707454131,-935.41,0.00023013,4]
[346109896,1734707454140,-2453.03,0.00023013,4]
[346109897,1734707454149,-2033.56,0.00023013,4]
[346109898,1734707454159,-500.0,0.00023013,4]
[346109899,1734707454168,-500.0,0.00023013,4]
[346109900,1734707454178,-500.0,0.00023013,4]
[346109901,1734707454187,-215.58647296,0.00023013,4]
[346109902,1734707454197,-500.0,0.00023013,4]
[346109903,1734707454206,-500.0,0.00023013,4]
[346109904,1734707454215,-1000.0,0.00023013,4]
[346109905,1734707454224,-1400.1,0.00023013,4]
[346109906,1734707454234,-594.31,0.00023013,4]
[346109907,1734707454243,-500.0,0.00023013,4]
[346109908,1734707454252,-500.0,0.00023013,4]
[346109909,1734707454262,-673.97,0.00023013,4]
[346109910,1734707454271,-500.0,0.00023013,4]
[346109911,1734707454280,-500.0,0.00023013,4]
[346109912,1734707454291,-500.0,0.00023013,4]
[346109913,1734707454300,-500.0,0.00023013,4]
[346109914,1734707454310,-500.0,0.00023013,4]
[346109915,1734707454319,-555.46,0.00023013,4]
[346109916,1734707454328,-736.35,0.00023013,4]
[346109917,1734707454338,-1063.31,0.00023013,4]
[346109918,1734707454348,-500.0,0.00023013,4]
[346109919,1734707454357,-947.08,0.00023013,4]
[346109920,1734707454367,-784.6,0.00023013,4]
[346109921,1734707454376,-500.0,0.00023013,4]
[346109922,1734707454386,-500.0,0.00023013,4]
[346109923,1734707454395,-623.0,0.00023013,4]
[346109924,1734707454404,-277.25033313,0.00023013,4]
[346109925,1734707454414,-716.67,0.00023013,4]
[346109926,1734707454424,-580.98,0.00023013,4]
[346109927,1734707454433,-551.86,0.00023013,4]
[346109928,1734707454443,-3286.73,0.00023013,4]
[346109929,1734707454452,-1009.08,0.00023013,4]
[346109930,1734707454462,-1115.76,0.00023013,4]
[346109931,1734707454472,-779.29,0.00023013,4]
[346109932,1734707454481,-500.0,0.00023013,4]
[346109933,1734707454491,-884.51,0.00023013,4]
[346109934,1734707454500,-500.0,0.00023013,4]
[346109935,1734707454510,-500.0,0.00023013,4]
[346109936,1734707454519,-842.18,0.00023013,4]
[346109937,1734707454528,-553.76,0.00023013,4]
[346109938,1734707454540,-524.23,0.00023013,4]
[346109939,1734707454549,-500.0,0.00023013,4]
[346109940,1734707454559,-736.43,0.00023013,4]
[346109941,1734707454570,-500.0,0.00023013,4]
[346109942,1734707454579,-500.0,0.00023013,4]
[346109943,1734707454588,-1081.46,0.00023013,4]
[346109944,1734707454597,-547.43,0.00023013,4]
[346109945,1734707454606,-500.0,0.00023013,4]
[346109946,1734707454616,-500.0,0.00023013,4]
[346109947,1734707454625,-1201.33,0.00023013,4]
[346109948,1734707454634,-500.0,0.00023013,4]
[346109949,1734707454643,-500.0,0.00023013,4]
[346109950,1734707454653,-1116.84,0.00023013,4]
[346109951,1734707454662,-1200.85,0.00023013,4]
[346109952,1734707454671,-500.0,0.00023013,4]
[346109953,1734707454680,-1096.41,0.00023013,4]
[346109954,1734707454689,-500.0,0.00023013,4]
[346109955,1734707454699,-158.04077046,0.00023013,4]
[346109956,1734707454708,-500.0,0.00023013,4]
[346109957,1734707454717,-980.9,0.00023013,4]
[346109958,1734707454727,-500.0,0.00023013,4]
[346109959,1734707454736,-500.0,0.00023013,4]
[346109960,1734707454745,-777.07,0.00023013,4]
[346109961,1734707454755,-500.0,0.00023013,4]
[346109962,1734707454765,-2214.51,0.00023013,4]
[346109963,1734707454774,-566.5,0.00023013,4]
[346109964,1734707454782,-436.8,0.00023096,2]
[346109965,1734707454795,-770.21,0.00023096,2]
[346109966,1734707454804,-770.21,0.00023096,2]
[346109967,1734707454813,-436.8,0.00023096,2]
[346109968,1734707454822,-770.21,0.00023096,2]
[346109969,1734707454832,-436.8,0.00023096,2]
[346109970,1734707454841,-646.51,0.00023096,2]
[346109971,1734707454850,-436.8,0.00023096,2]
[346109972,1734707454859,-770.21,0.00023096,2]
[346109973,1734707454868,-511.53,0.00023096,2]
[346109974,1734707454878,-1356.636832,0.00023157,2]
[346109975,1734707454887,-308.000307,0.00023206,2]
[346109976,1734707454897,-900.0,0.00023256,2]
[346109977,1734707454906,-153.0,0.00023259,2]
[346109978,1734707454916,-153.0,0.00023259,2]
[346109979,1734707454924,-153.0,0.00023259,2]
[346109980,1734707454933,-153.0,0.00023259,2]
[346109981,1734707454942,-153.0,0.00023259,2]
[346109982,1734707454951,-153.0,0.00023259,2]
[346109983,1734707454960,-153.0,0.00023259,2]
[346109984,1734707454969,-153.0,0.00023259,2]
[346109985,1734707454978,-153.0,0.0002326,2]
[346109986,1734707454988,-197.27,0.00023265,2]
[346109987,1734707454996,-999.0,0.00023286,2]
[346109988,1734707455005,-500.0,0.00023287,4]
[346109989,1734707455016,-500.0,0.00023287,4]
[346109990,1734707455028,-196.142161,0.00023287,4]
[346109991,1734707455040,-173.934065,0.00023287,4]
[346109992,1734707455049,-500.0,0.00023287,4]
[346109993,1734707455059,-500.0,0.00023287,4]
[346109994,1734707455068,-535.42,0.00023287,4]
[346109995,1734707455079,-500.0,0.00023287,4]
[346109996,1734707455088,-334.99890637,0.00023287,4]
[346109997,1734707455097,-500.0,0.00023287,4]
[346109998,1734707455107,-561.32,0.00023287,4]
[346109999,1734707455116,-500.0,0.00023287,4]
[346110000,1734707455126,-500.0,0.00023287,4]
[346110001,1734707455135,-500.0,0.00023287,4]
[346110002,1734707455144,-500.0,0.00023287,4]
[346110003,1734707455154,-500.0,0.00023287,4]
[346110004,1734707455163,-500.0,0.00023287,4]
[346110005,1734707455173,-500.0,0.00023287,4]
[346110006,1734707455182,-500.0,0.00023287,4]
[346110007,1734707455192,-500.0,0.00023287,4]
[346110008,1734707455201,-500.0,0.00023287,4]
[346110009,1734707455211,-500.0,0.00023287,4]
[346110010,1734707455220,-500.0,0.00023287,4]
[346110011,1734707455230,-500.0,0.00023287,4]
[346110012,1734707455240,-500.0,0.00023287,4]
[346110013,1734707455249,-500.0,0.00023287,4]
[346110014,1734707455259,-305.48,0.00023287,4]
[346110015,1734707455269,-500.0,0.00023287,4]
[346110016,1734707455279,-500.0,0.00023287,4]
[346110017,1734707455292,-500.0,0.00023287,4]
[346110018,1734707455302,-500.0,0.00023287,4]
[346110019,1734707455312,-500.0,0.00023287,4]
[346110020,1734707455321,-500.0,0.00023287,4]
[346110021,1734707455331,-500.0,0.00023287,4]
[346110022,1734707455341,-500.0,0.00023287,4]
[346110023,1734707455351,-500.0,0.00023287,4]
[346110024,1734707455360,-518.88,0.00023287,4]
[346110025,1734707455371,-500.0,0.00023287,4]
[346110026,1734707455380,-780.17,0.00023287,4]
[346110027,1734707455390,-500.0,0.00023287,4]
[346110028,1734707455399,-500.0,0.00023287,4]
[346110029,1734707455409,-500.0,0.00023287,4]
[346110030,1734707455420,-500.0,0.00023287,4]
[346110031,1734707455430,-500.0,0.00023287,4]
[346110032,1734707455439,-500.0,0.00023287,4]
[346110033,1734707455449,-500.0,0.00023287,4]
[346110034,1734707455459,-500.0,0.00023287,4]
[346110035,1734707455469,-500.0,0.00023287,4]
[346110036,1734707455478,-500.0,0.00023287,4]
[346110037,1734707455488,-865.0,0.00023287,4]
[346110038,1734707455498,-500.0,0.00023287,4]
[346110039,1734707455508,-616.88,0.00023287,4]
[346110040,1734707455518,-500.0,0.00023287,4]
[346110041,1734707455528,-500.0,0.00023287,4]
[346110042,1734707455542,-920.36,0.00023287,4]
[346110043,1734707455552,-500.0,0.00023287,4]
[346110044,1734707455561,-500.0,0.00023287,4]
[346110045,1734707455571,-500.0,0.00023287,4]
[346110046,1734707455581,-500.0,0.00023287,4]
[346110047,1734707455591,-500.0,0.00023287,4]
[346110048,1734707455601,-500.0,0.00023287,4]
[346110049,1734707455611,-451.59501134,0.00023287,4]
[346110050,1734707455621,-500.0,0.00023287,4]
[346110051,1734707455631,-500.0,0.00023287,4]
[346110052,1734707455641,-506.0,0.00023287,4]
[346110053,1734707455650,-500.0,0.00023287,4]
[346110054,1734707455660,-500.0,0.00023287,4]
[346110055,1734707455669,-500.0,0.00023287,4]
[346110056,1734707455679,-500.0,0.00023287,4]
[346110057,1734707455688,-500.0,0.00023287,4]
[346110058,1734707455698,-500.0,0.00023287,4]
[346110059,1734707455708,-537.38,0.00023287,4]
[346110060,1734707455717,-500.0,0.00023287,4]
[346110061,1734707455727,-500.0,0.00023287,4]
[346110062,1734707455739,-500.0,0.00023287,4]
[346110063,1734707455749,-500.0,0.00023287,4]
[346110064,1734707455759,-500.0,0.00023287,4]
[346110065,1734707455769,-500.0,0.00023287,4]
[346110066,1734707455780,-500.0,0.00023287,4]
[346110067,1734707455791,-500.0,0.00023287,4]
[346110068,1734707455801,-500.0,0.00023287,4]
[346110069,1734707455810,-500.0,0.00023287,4]
[346110070,1734707455820,-500.0,0.00023287,4]
[346110071,1734707455831,-500.0,0.00023287,4]
[346110072,1734707455840,-500.0,0.00023287,4]
[346110073,1734707455850,-500.0,0.00023287,4]
[346110074,1734707455860,-412.19290515,0.00023287,4]
[346110075,1734707455869,-500.0,0.00023287,4]
[346110076,1734707455879,-500.0,0.00023287,4]
[346110077,1734707455889,-500.0,0.00023287,4]
[346110078,1734707455898,-476.31970393,0.00023287,4]
[346110079,1734707455907,-548.31,0.00023287,4]
[346110080,1734707455917,-500.0,0.00023287,4]
[346110081,1734707455927,-500.0,0.00023287,4]
[346110082,1734707455936,-500.0,0.00023287,4]
[346110083,1734707455946,-500.0,0.00023287,4]
[346110084,1734707455958,-500.0,0.00023287,4]
[346110085,1734707455969,-500.0,0.00023287,4]
[346110086,1734707455979,-733.25,0.00023287,4]
[346110087,1734707455988,-617.62,0.00023287,4]
[346110088,1734707455998,-500.0,0.00023287,4]
[346110089,1734707456008,-380.21,0.00023287,4]
[346110090,1734707456019,-500.0,0.00023287,4]
[346110091,1734707456029,-1000.0,0.00023287,5]
[346110092,1734707456041,-1000.0,0.00023287,5]
[346110093,1734707456050,-1000.0,0.00023287,5]
[346110094,1734707456061,-1000.0,0.00023287,5]
[346110095,1734707456071,-1000.0,0.00023287,5]
[346110096,1734707456080,-500.0,0.00023287,4]
[346110097,1734707456090,-1000.0,0.00023287,5]
[346110098,1734707456100,-508.22,0.00023287,4]
[346110099,1734707456110,-500.0,0.00023287,4]
[346110100,1734707456120,-500.0,0.00023287,4]
[346110101,1734707456130,-500.0,0.00023287,4]
[346110102,1734707456140,-703.71,0.00023287,4]
[346110103,1734707456149,-500.0,0.00023287,4]
[346110104,1734707456159,-500.0,0.00023287,4]
[346110105,1734707456169,-728.49,0.00023287,4]
[346110106,1734707456178,-500.0,0.00023287,4]
[346110107,1734707456188,-552.28,0.00023287,4]
[346110108,1734707456198,-1537.6,0.00023287,4]
[346110109,1734707456208,-1492.37,0.00023287,4]
[346110110,1734707456217,-529.58,0.00023287,4]
[346110111,1734707456227,-500.0,0.00023287,2]
[346110112,1734707456237,-500.0,0.00023287,4]
[346110113,1734707456247,-500.0,0.00023287,4]
[346110114,1734707456257,-2314.29,0.00023287,4]
[346110115,1734707456268,-1484.67,0.00023287,4]
[346110116,1734707456278,-500.0,0.00023287,4]
[346110117,1734707456288,-692.37,0.00023287,4]
[346110118,1734707456303,-500.0,0.00023287,4]
[346110119,1734707456313,-500.0,0.00023287,4]
[346110120,1734707456323,-500.0,0.00023287,4]
[346110121,1734707456333,-853.34,0.00023287,4]
[346110122,1734707456343,-1231.78,0.00023287,4]
[346110123,1734707456353,-1496.64,0.00023287,4]
[346110124,1734707456363,-500.0,0.00023287,4]
[346110125,1734707456373,-500.0,0.00023287,4]
[346110126,1734707456383,-688.65,0.00023287,4]
[346110127,1734707456394,-654.6,0.00023287,4]
[346110128,1734707456404,-1117.72,0.00023287,4]
[346110129,1734707456414,-500.0,0.00023287,4]
[346110130,1734707456425,-1296.21,0.00023287,4]
[346110131,1734707456435,-500.0,0.00023287,4]
[346110132,1734707456445,-500.0,0.00023287,4]
[346110133,1734707456454,-500.0,0.00023287,4]
[346110134,1734707456464,-500.0,0.00023287,4]
[346110135,1734707456473,-500.0,0.00023287,4]
[346110136,1734707456483,-500.0,0.00023287,4]
[346110137,1734707456493,-1206.4,0.00023287,4]
[346110138,1734707456503,-1027.71,0.00023287,4]
[346110139,1734707456513,-2695.1,0.00023287,4]
[346110140,1734707456523,-1092.82,0.00023287,4]
[346110141,1734707456532,-500.0,0.00023287,4]
[346110142,1734707456545,-500.0,0.00023287,4]
[346110143,1734707456555,-1837.68,0.00023287,4]
[346110144,1734707456566,-546.08,0.00023287,4]
[346110145,1734707456576,-5443.38,0.00023287,4]
[346110146,1734707456586,-685.52,0.00023287,4]
[346110147,1734707456596,-500.0,0.00023287,4]
[346110148,1734707456606,-500.0,0.00023287,4]
[346110149,1734707456616,-701.16,0.00023287,4]
[346110150,1734707456626,-500.0,0.00023287,4]
[346110151,1734707456635,-642.0758105,0.00023287,4]
[346110152,1734707456645,-1609.32,0.00023287,4]
[346110153,1734707456655,-541.47,0.00023287,4]
[346110154,1734707456665,-763.11,0.00023287,4]
[346110155,1734707456675,-631.11,0.00023287,4]
[346110156,1734707456685,-1104.99,0.00023287,4]
[346110157,1734707456694,-771.36,0.00023287,4]
[346110158,1734707456704,-500.0,0.00023287,4]
[346110159,1734707456714,-500.0,0.00023287,4]
[346110160,1734707456724,-793.52,0.00023287,4]
[346110161,1734707456733,-500.0,0.00023287,4]
[346110162,1734707456743,-500.0,0.00023287,4]
[346110163,1734707456753,-1146.34,0.00023287,4]
[346110164,1734707456762,-1833.46,0.00023287,4]
[346110165,1734707456772,-500.0,0.00023287,4]
[346110166,1734707456781,-500.0,0.00023287,4]
[346110167,1734707456793,-6508.14,0.00023287,4]
[346110168,1734707456803,-500.0,0.00023287,4]
[346110169,1734707456812,-500.0,0.00023287,4]
[346110170,1734707456822,-903.84,0.00023287,4]
[346110171,1734707456831,-500.0,0.00023287,4]
[346110172,1734707456841,-500.0,0.00023287,4]
[346110173,1734707456850,-500.0,0.00023287,4]
[346110174,1734707456860,-500.0,0.00023287,4]
[346110175,1734707456870,-500.0,0.00023287,4]
[346110176,1734707456880,-731.02,0.00023287,4]
[346110177,1734707456891,-776.61,0.00023287,4]
[346110178,1734707456900,-500.0,0.00023287,4]
[346110179,1734707456910,-507.66,0.00023287,4]
[346110180,1734707456920,-965.02,0.00023287,4]
[346110181,1734707456929,-759.84,0.00023287,4]
[346110182,1734707456939,-6484.19,0.00023287,4]
[346110183,1734707456948,-2332.61,0.00023287,4]
[346110184,1734707456958,-500.0,0.00023287,4]
[346110185,1734707456968,-1666.41,0.00023287,4]
[346110186,1734707456978,-500.0,0.00023287,4]
[346110187,1734707456988,-501.2,0.00023287,4]
[346110188,1734707456998,-1389.61,0.00023287,4]
[346110189,1734707457008,-935.41,0.00023287,4]
[346110190,1734707457019,-2453.03,0.00023287,4]
[346110191,1734707457030,-2033.56,0.00023287,4]
[346110192,1734707457041,-500.0,0.00023287,4]
[346110193,1734707457051,-306.97924415,0.00023287,4]
[346110194,1734707457061,-500.0,0.00023287,4]
[346110195,1734707457071,-500.0,0.00023287,4]
[346110196,1734707457081,-500.0,0.00023287,4]
[346110197,1734707457091,-1400.1,0.00023287,4]
[346110198,1734707457101,-1000.0,0.00023287,4]
[346110199,1734707457111,-594.31,0.00023287,4]
[346110200,1734707457122,-500.0,0.00023287,4]
[346110201,1734707457131,-500.0,0.00023287,4]
[346110202,1734707457141,-673.97,0.00023287,4]
[346110203,1734707457151,-500.0,0.00023287,4]
[346110204,1734707457161,-500.0,0.00023287,4]
[346110205,1734707457171,-500.0,0.00023287,4]
[346110206,1734707457181,-500.0,0.00023287,4]
[346110207,1734707457190,-500.0,0.00023287,4]
[346110208,1734707457200,-555.46,0.00023287,4]
[346110209,1734707457210,-736.35,0.00023287,4]
[346110210,1734707457220,-1063.31,0.00023287,4]
[346110211,1734707457230,-500.0,0.00023287,4]
[346110212,1734707457240,-947.08,0.00023287,4]
[346110213,1734707457251,-784.6,0.00023287,4]
[346110214,1734707457261,-500.0,0.00023287,4]
[346110215,1734707457271,-500.0,0.00023287,4]
[346110216,1734707457282,-623.0,0.00023287,4]
[346110217,1734707457294,-716.67,0.00023287,4]
[346110218,1734707457304,-580.98,0.00023287,4]
[346110219,1734707457314,-551.86,0.00023287,4]
[346110220,1734707457324,-3286.73,0.00023287,4]
[346110221,1734707457335,-1009.08,0.00023287,4]
[346110222,1734707457345,-1115.76,0.00023287,4]
[346110223,1734707457356,-779.29,0.00023287,4]
[346110224,1734707457366,-500.0,0.00023287,4]
[346110225,1734707457377,-884.51,0.00023287,4]
[346110226,1734707457619,-500.0,0.00023287,4]
[346110227,1734707457635,-500.0,0.00023287,4]
[346110228,1734707457656,-842.18,0.00023287,4]
[346110229,1734707457677,-553.76,0.00023287,4]
[346110230,1734707457693,-524.23,0.00023287,4]
[346110231,1734707457704,-500.0,0.00023287,4]
[346110232,1734707457715,-736.43,0.00023287,4]
[346110233,1734707457728,-372.3,0.00023287,4]
[346110234,1734707457740,-500.0,0.00023287,4]
[346110235,1734707457752,-1081.46,0.00023287,4]
[346110236,1734707457763,-547.43,0.00023287,4]
[346110237,1734707457775,-500.0,0.00023287,4]
[346110238,1734707457787,-500.0,0.00023287,4]
[346110239,1734707457802,-1201.33,0.00023287,4]
[346110240,1734707457813,-500.0,0.00023287,4]
[346110241,1734707457824,-500.0,0.00023287,4]
[346110242,1734707457836,-1116.84,0.00023287,4]
[346110243,1734707457848,-1200.85,0.00023287,4]
[346110244,1734707457858,-500.0,0.00023287,4]
[346110245,1734707457868,-1096.41,0.00023287,4]
[346110246,1734707457879,-500.0,0.00023287,4]
[346110247,1734707457889,-500.0,0.00023287,4]
[346110248,1734707457901,-980.9,0.00023287,4]
[346110249,1734707457912,-500.0,0.00023287,4]
[346110250,1734707457923,-500.0,0.00023287,4]
[346110251,1734707457934,-777.07,0.00023287,4]
[346110252,1734707457945,-500.0,0.00023287,4]
[346110253,1734707457954,-2214.51,0.00023287,4]
[346110254,1734707457966,-566.5,0.00023287,4]
[346110255,1734707457976,-176.04,0.00023288,2]
[346110256,1734707457988,-1600.0,0.00023294,2]
[346110257,1734707457998,-691.8020788,0.00023321,2]
[346110258,1734707458009,-480.22,0.00023361,2]
[346110259,1734707458019,-301.35,0.0002337,2]
[346110260,1734707458031,-315.86,0.0002337,2]
[346110261,1734707458045,-418.25,0.0002337,2]
[346110262,1734707458055,-973.3,0.0002337,2]
[346110263,1734707458066,-340.0,0.000234,2]
[346110264,1734707458077,-1226.06,0.00023415,7]
[346110265,1734707458088,-1226.06,0.00023415,7]
[346110266,1734707458098,-1226.06,0.00023415,7]
[346110267,1734707458110,-1226.06,0.00023415,7]
[346110268,1734707458121,-1000.0,0.00023476,2]
[346110269,1734707458131,-193.99,0.0002349,2]
[346110270,1734707458141,-230.0,0.000235,2]
[346110271,1734707458151,-1049.12886973,0.0002352,2]
[346110272,1734707458161,-282.2430785,0.0002352,2]
[346110273,1734707458171,-1144.86109455,0.0002352,2]
[346110274,1734707458181,-1356.636832,0.00023528,2]
[346110275,1734707458192,-305.25,0.00023544,2]
[346110276,1734707458202,-308.000307,0.00023553,2]
[346110277,1734707458212,-500.0,0.00023561,4]
[346110278,1734707458221,-500.0,0.00023561,4]
[346110279,1734707458230,-196.142161,0.00023561,4]
[346110280,1734707458240,-173.934065,0.00023561,4]
[346110281,1734707458250,-500.0,0.00023561,4]
[346110282,1734707458260,-500.0,0.00023561,4]
[346110283,1734707458270,-535.42,0.00023561,4]
[346110284,1734707458279,-500.0,0.00023561,4]
[346110285,1734707458294,-500.0,0.00023561,4]
[346110286,1734707458307,-561.32,0.00023561,4]
[346110287,1734707458317,-500.0,0.00023561,4]
[346110288,1734707458328,-500.0,0.00023561,4]
[346110289,1734707458338,-500.0,0.00023561,4]
[346110290,1734707458349,-500.0,0.00023561,4]
[346110291,1734707458359,-500.0,0.00023561,4]
[346110292,1734707458369,-500.0,0.00023561,4]
[346110293,1734707458379,-500.0,0.00023561,4]
[346110294,1734707458389,-500.0,0.00023561,4]
[346110295,1734707458399,-251.89201908,0.00023561,4]
[346110296,1734707458410,-500.0,0.00023561,4]
[346110297,1734707458420,-500.0,0.00023561,4]
[346110298,1734707458429,-500.0,0.00023561,4]
[346110299,1734707458439,-500.0,0.00023561,4]
[346110300,1734707458450,-500.0,0.00023561,4]
[346110301,1734707458459,-500.0,0.00023561,4]
[346110302,1734707458469,-500.0,0.00023561,4]
[346110303,1734707458479,-500.0,0.00023561,4]
[346110304,1734707458489,-500.0,0.00023561,4]
[346110305,1734707458498,-500.0,0.00023561,4]
[346110306,1734707458508,-500.0,0.00023561,4]
[346110307,1734707458518,-500.0,0.00023561,4]
[346110308,1734707458528,-500.0,0.00023561,4]
[346110309,1734707458540,-500.0,0.00023561,4]
[346110310,1734707458552,-500.0,0.00023561,4]
[346110311,1734707458562,-518.88,0.00023561,4]
[346110312,1734707458572,-500.0,0.00023561,4]
[346110313,1734707458582,-780.17,0.00023561,4]
[346110314,1734707458591,-500.0,0.00023561,4]
[346110315,1734707458602,-500.0,0.00023561,4]
[346110316,1734707458614,-500.0,0.00023561,4]
[346110317,1734707458624,-500.0,0.00023561,4]
[346110318,1734707458634,-500.0,0.00023561,4]
[346110319,1734707458643,-500.0,0.00023561,4]
[346110320,1734707458653,-500.0,0.00023561,4]
[346110321,1734707458663,-500.0,0.00023561,4]
[346110322,1734707458673,-500.0,0.00023561,4]
[346110323,1734707458683,-500.0,0.00023561,4]
[346110324,1734707458693,-865.0,0.00023561,4]
[346110325,1734707458703,-624.51453931,0.00023561,4]
[346110326,1734707458714,-616.88,0.00023561,4]
[346110327,1734707458724,-500.0,0.00023561,4]
[346110328,1734707458735,-474.14062095,0.00023561,4]
[346110329,1734707458745,-920.36,0.00023561,4]
[346110330,1734707458756,-500.0,0.00023561,4]
[346110331,1734707458766,-500.0,0.00023561,4]
[346110332,1734707458776,-500.0,0.00023561,4]
[346110333,1734707458786,-500.0,0.00023561,4]
[346110334,1734707458800,-500.0,0.00023561,4]
[346110335,1734707458810,-500.0,0.00023561,4]
[346110336,1734707458820,-500.0,0.00023561,4]
[346110337,1734707458830,-500.0,0.00023561,4]
[346110338,1734707458840,-506.0,0.00023561,4]
[346110339,1734707458850,-447.25251234,0.00023561,4]
[346110340,1734707458860,-500.0,0.00023561,4]
[346110341,1734707458869,-500.0,0.00023561,4]
[346110342,1734707458879,-500.0,0.00023561,4]
[346110343,1734707458888,-500.0,0.00023561,4]
[346110344,1734707458898,-500.0,0.00023561,4]
[346110345,1734707458908,-537.38,0.00023561,4]
[346110346,1734707458918,-500.0,0.00023561,4]
[346110347,1734707458928,-617.53161669,0.00023561,4]
[346110348,1734707458938,-500.0,0.00023561,4]
[346110349,1734707458947,-500.0,0.00023561,4]
[346110350,1734707458957,-500.0,0.00023561,4]
[346110351,1734707458967,-500.0,0.00023561,4]
[346110352,1734707458977,-500.0,0.00023561,4]
[346110353,1734707458987,-500.0,0.00023561,4]
[346110354,1734707458996,-500.0,0.00023561,4]
[346110355,1734707459006,-500.0,0.00023561,4]
[346110356,1734707459016,-500.0,0.00023561,4]
[346110357,1734707459029,-500.0,0.00023561,4]
[346110358,1734707459042,-500.0,0.00023561,4]
[346110359,1734707459052,-500.0,0.00023561,4]
[346110360,1734707459062,-500.0,0.00023561,4]
[346110361,1734707459072,-500.0,0.00023561,4]
[346110362,1734707459081,-548.31,0.00023561,4]
[346110363,1734707459091,-500.0,0.00023561,4]